bitfinex/quotes_SOLUSD_20250708
["timestamp","ask_amount","ask_price","bid_price","bid_amount"]
[1752005756249,67.16,151.17,151.15,5.90784056]
[1752005757039,67.16,151.17,151.15,0.03]
[1752005757349,67.16,151.17,151.15,5.90784056]
[1752005758045,73.77513577,151.17,151.15,0.03]
[1752005758245,79.65297633,151.17,151.15,0.03]
[1752005759444,11.46579986,151.16,151.15,0.03]
[1752005761340,4.85029312,151.16,151.15,0.03]
[1752005762161,71.99029312,151.16,151.15,0.03]
[1752005762350,4.85029312,151.16,151.15,5.90784056]
[1752005764363,4.85029312,151.16,151.15,0.03]
[1752005764943,4.85029312,151.16,151.15,5.90784056]
[1752005769356,33.56,151.18,151.15,5.90784056]
[1752005769571,7.49664056,151.23,151.17,5.87784056]
[1752005769773,64.42908279,151.22,151.19,5.87784056]
[1752005769951,4.86908279,151.21,151.18,5.87784056]
[1752005770153,4.86908279,151.2,151.18,5.87784056]
[1752005770354,4.86908279,151.19,151.18,5.87784056]
[1752005771252,33.58,151.21,151.18,5.87784056]
[1752005771484,4.87090158,151.2,151.19,5.87784056]
[1752005773362,4.87090158,151.2,151.18,5.87784056]
[1752005773572,4.87090158,151.19,151.18,5.87784056]
[1752005783966,4.87090158,151.19,151.18,12.49247212]
[1752005784693,4.87090158,151.19,151.18,5.87784056]
[1752005785372,72.03088338,151.22,151.18,5.87784056]
[1752005785572,4.87125561,151.21,151.18,5.87784056]
[1752005785773,4.87125561,151.2,151.18,5.87784056]
[1752005786084,4.87125561,151.19,151.18,5.87784056]
[1752005786501,72.01088338,151.22,151.18,5.87784056]
[1752005786676,4.87092954,151.21,151.18,5.87784056]
[1752005786874,4.87092954,151.2,151.18,5.87784056]
[1752005787193,72.01088338,151.22,151.18,5.87784056]
[1752005787394,4.87101458,151.21,151.18,5.87784056]
[1752005787594,4.87101458,151.2,151.16,6.61534435]
[1752005787896,4.87101458,151.19,151.17,5.87784056]
[1752005788075,33.54,151.2,151.16,5.87784056]
[1752005788277,4.87076133,151.19,151.16,5.87784056]
[1752005788478,33.54,151.2,151.16,5.87784056]
[1752005788682,4.87071275,151.19,151.15,0.03]
[1752005788885,44.28855331,151.18,151.15,0.03]
[1752005789089,4.87071275,151.17,151.15,0.03]
[1752005789393,12.49254012,151.18,151.15,0.03]
[1752005789591,4.87015844,151.17,151.15,0.03]
[1752005789794,12.49254012,151.18,151.15,0.03]
[1752005790103,4.87015676,151.17,151.15,0.03]
[1752005790307,12.49254012,151.18,151.15,0.03]
[1752005790602,4.87088166,151.17,151.15,0.03]
[1752005790803,12.49254012,151.18,151.15,0.03]
[1752005791002,4.87207382,151.17,151.15,0.03]
[1752005791305,12.49254012,151.18,151.15,0.03]
[1752005791600,4.8723049,151.17,151.15,0.03]
[1752005791901,4.8723049,151.16,151.15,0.03]
[1752005793382,4.8723049,151.16,151.15,5.90784056]
[1752005793586,4.8723049,151.16,151.15,12.52378498]
[1752005794610,4.8723049,151.16,151.15,0.03]
[1752005797680,4.8723049,151.16,151.15,5.90784056]
[1752005798312,6.61466692,151.18,151.15,5.90784056]
[1752005798481,4.87251787,151.17,151.15,5.90784056]
[1752005798780,6.61466692,151.18,151.15,5.90784056]
[1752005798983,4.87251404,151.17,151.15,5.90784056]
[1752005799183,4.87268294,151.16,151.15,5.90784056]
[1752005800463,4.87268294,151.16,151.15,12.52378498]
[1752005800590,33.54,151.19,151.15,12.52378498]
[1752005800791,4.87273086,151.18,151.16,5.87784056]
[1752005801091,4.87273086,151.17,151.16,5.87784056]
[1752005801919,4.87273086,151.17,151.15,5.90784056]
[1752005802084,12.49211329,151.19,151.15,5.90784056]
[1752005802404,4.87283899,151.18,151.15,5.90784056]
[1752005802606,4.87283899,151.17,151.15,0.03]
[1752005802781,12.49211329,151.19,151.15,5.90784056]
[1752005802985,4.87295163,151.18,151.15,5.90784056]
[1752005803306,4.87295163,151.17,151.15,5.90784056]
[1752005803511,12.49211329,151.19,151.15,5.90784056]
[1752005803689,4.872976,151.18,151.15,5.90784056]
[1752005803890,4.872976,151.17,151.15,5.90784056]
[1752005804090,12.49211329,151.19,151.15,5.90784056]
[1752005804298,4.87336518,151.18,151.15,5.90784056]
[1752005804499,4.87336518,151.17,151.15,5.90784056]
[1752005804693,12.49211329,151.19,151.15,0.03]
[1752005804899,4.87363477,151.18,151.15,12.52375039]
[1752005805102,4.87363477,151.17,151.15,12.52375039]
[1752005805307,12.49211329,151.19,151.15,12.52375039]
[1752005805509,4.87381087,151.18,151.15,12.52375039]
[1752005805818,4.87381087,151.17,151.15,12.52375039]
[1752005806021,12.49211329,151.19,151.15,12.52375039]
[1752005806209,4.87382188,151.18,151.17,5.87784056]
[1752005807512,71.99095918,151.22,151.17,5.87784056]
[1752005807819,4.87530005,151.21,151.17,5.87784056]
[1752005808031,4.87530005,151.2,151.17,12.49274445]
[1752005808334,0.06,151.18,151.17,12.49274445]
[1752005809724,4.93684691,151.18,151.16,5.87784056]
[1752005809909,0.06,151.18,151.16,5.87784056]
[1752005812213,4.87923724,151.17,151.16,5.87784056]
[1752005812731,0.06,151.18,151.16,5.87784056]
[1752005814531,4.88067005,151.17,151.16,5.87784056]
[1752005814731,4.88067005,151.17,151.15,5.90784056]
[1752005814912,0.06,151.18,151.15,5.90784056]
[1752005815112,4.88179661,151.17,151.15,5.90784056]
[1752005815327,5.93784056,151.18,151.15,0.03]
[1752005815645,10.7599959,151.17,151.15,0.03]
[1752005815804,10.7599959,151.16,151.15,0.03]
[1752005815998,17.37550264,151.16,151.15,0.03]
[1752005817608,30.43163408,151.16,151.15,0.03]
[1752005817833,17.37550264,151.16,151.15,0.03]
[1752005820208,10.7599959,151.16,151.15,0.03]
[1752005820437,4.88215534,151.16,151.15,0.03]
[1752005820734,10.7599959,151.16,151.15,0.03]
[1752005821312,4.88215534,151.16,151.15,0.03]
[1752005821513,10.7599959,151.16,151.15,0.03]
[1752005823915,4.88215534,151.16,151.15,0.03]
[1752005824841,36.30947464,151.16,151.15,0.03]
[1752005825032,68.61557464,151.16,151.15,0.03]
[1752005825546,135.73557464,151.16,151.15,0.03]
[1752005830022,109.73557464,151.16,151.15,0.03]
[1752005830419,109.79557464,151.16,151.15,0.03]
[1752005832660,26.0,151.13,151.06,8.18690511]
[1752005832829,77.8599959,151.12,151.08,5.87784056]
[1752005833030,72.97784056,151.12,151.08,5.87784056]
[1752005834152,79.59539593,151.12,151.08,5.87784056]
[1752005834361,79.59539593,151.12,151.08,5.37784056]
[1752005834871,79.59539593,151.12,151.08,5.87784056]
[1752005837863,67.1,151.12,151.09,5.87784056]
[1752005838058,73.71726489,151.12,151.09,5.87784056]
[1752005839551,73.71726489,151.12,151.07,6.6192905]
[1752005839759,79.59510545,151.12,151.08,5.87784056]
[1752005840360,5.87784056,151.13,151.09,5.87784056]
[1752005840545,39.41784056,151.13,151.09,5.87784056]
[1752005842074,46.03500537,151.13,151.07,6.61944793]
[1752005842278,46.03500537,151.13,151.09,5.87784056]
[1752005843291,46.03500537,151.13,151.08,5.87784056]
[1752005844761,5.87784056,151.12,151.08,5.87784056]
[1752005844966,3.77155187,151.12,151.08,3.77155187]
[1752005845272,43.92871668,151.13,151.09,3.77155187]
[1752005845973,40.15716481,151.13,151.1,3.77155187]
[1752005847582,3.77155187,151.12,151.08,3.77155187]
[1752005848671,3.77155187,151.09,151.03,1.3752501]
[1752005848872,5.89622043,151.08,151.03,1.3752501]
[1752005849077,5.89622043,151.08,151.04,5.89622043]
[1752005849587,5.89622043,151.08,151.03,1.3752501]
[1752005849756,12.51554996,151.08,151.03,7.27147053]
[1752005850156,12.51554996,151.08,151.03,1.3752501]
[1752005850389,73.05622043,151.07,151.03,7.27147053]
[1752005850588,5.89622043,151.06,151.03,1.3752501]
[1752005851188,67.16,151.07,151.03,1.3752501]
[1752005851189,73.05622043,151.07,151.03,1.3752501]
[1752005851358,5.89622043,151.06,151.03,1.3752501]
[1752005851799,12.516133,151.06,151.03,1.3752501]
[1752005852583,12.516133,151.06,151.03,1.4052501]
[1752005853299,5.89622043,151.05,151.03,1.4052501]
[1752005853483,73.05622043,151.05,151.03,1.4052501]
[1752005855197,67.16,151.05,151.03,1.4052501]
[1752005855767,79.67657886,151.05,151.03,1.4052501]
[1752005856799,5.89622043,151.04,151.03,1.4052501]
[1752005857199,12.51698314,151.04,151.03,1.4052501]
[1752005857896,5.89622043,151.04,151.03,1.4052501]
[1752005858204,73.05622043,151.05,151.03,1.4052501]
[1752005858374,79.67655585,151.05,151.03,1.4052501]
[1752005858568,67.16,151.05,151.03,1.4052501]
[1752005860197,79.67661225,151.05,151.03,1.4052501]
[1752005860404,26.39909243,151.04,151.03,1.4052501]
[1752005861077,31.26064191,151.04,151.03,1.4052501]
[1752005861600,37.75284191,151.04,151.03,1.4052501]
[1752005861896,44.37360462,151.04,151.03,1.4052501]
[1752005862888,38.47738419,151.04,151.03,1.4052501]
[1752005863092,39.51205514,151.04,151.03,1.4052501]
[1752005865805,70.36645424,151.04,151.03,1.4052501]
[1752005866303,76.26267467,151.04,151.03,1.4052501]
[1752005867299,70.36645424,151.04,151.03,1.4052501]
[1752005868487,76.26267467,151.04,151.03,1.4052501]
[1752005874390,70.36645424,151.04,151.03,1.4052501]
[1752005876790,44.36645424,151.04,151.03,1.3752501]
[1752005877911,50.26267467,151.04,151.03,1.3752501]
[1752005878211,50.26267467,151.04,151.03,1e-08]
[1752005880595,104.7899311,151.04,151.03,1e-08]
[1752005881313,104.93209267,151.04,151.03,1e-08]
[1752005881814,105.07425424,151.04,151.03,1e-08]
[1752005882600,129.2210311,151.04,151.03,1e-08]
[1752005883059,129.36319267,151.04,151.03,1e-08]
[1752005883394,62.0210311,151.04,151.03,1e-08]
[1752005883599,76.97138224,151.04,151.03,1e-08]
[1752005883900,72.11698314,151.04,151.03,1e-08]
[1752005884128,76.96871533,151.04,151.03,1e-08]
[1752005884917,43.36871533,151.04,151.03,1e-08]
[1752005885225,76.96871533,151.04,151.03,1e-08]
[1752005887625,71.0724949,151.04,151.03,1e-08]
[1752005887931,76.96871533,151.04,151.03,1e-08]
[1752005888503,71.0724949,151.04,151.03,1e-08]
[1752005888713,76.96871533,151.04,151.03,1e-08]
[1752005889925,43.36871533,151.04,151.03,1e-08]
[1752005890116,76.96871533,151.04,151.03,1e-08]
[1752005890931,95.90268733,151.04,151.03,1e-08]
[1752005891409,69.90268733,151.04,151.03,1e-08]
[1752005891732,78.83246638,151.04,151.03,1e-08]
[1752005891930,89.94516284,151.04,151.03,1e-08]
[1752005895310,78.15272198,151.04,151.03,1e-08]
[1752005895539,89.94516284,151.04,151.03,1e-08]
[1752005895849,89.95293284,151.04,151.03,1e-08]
[1752005896218,78.01833041,151.04,151.03,1e-08]
[1752005896422,89.81077127,151.04,151.03,1e-08]
[1752005896631,89.95293284,151.04,151.03,1e-08]
[1752005899543,84.11671241,151.04,151.03,1e-08]
[1752005900528,84.1198541,151.04,151.03,1e-08]
[1752005902446,26.0,151.01,150.99,15.0]
[1752005902622,91.03058015,151.0,150.99,15.0]
[1752005903220,96.92680058,151.0,150.99,15.0]
[1752005903420,103.54931713,151.0,150.99,15.0]
[1752005907820,103.54931713,151.0,150.99,1e-08]
[1752005909741,103.55581263,151.0,150.99,1e-08]
[1752005912437,36.33581263,151.0,150.99,1e-08]
[1752005912635,69.95581263,151.0,150.99,1e-08]
[1752005915268,69.93581263,151.0,150.99,1e-08]
[1752005915644,36.33351811,151.0,150.99,1e-08]
[1752005915850,69.93351811,151.0,150.99,1e-08]
[1752005919179,36.33351811,151.0,150.99,1e-08]
[1752005919372,69.93351811,151.0,150.99,1e-08]
[1752005920873,69.93633083,151.0,150.99,1e-08]
[1752005922085,95.93633083,151.0,150.99,1e-08]
[1752005922562,69.93633083,151.0,150.99,1e-08]
[1752005924770,69.93633083,151.0,150.99,0.03000001]
[1752005925173,69.99633083,151.0,150.99,0.03000001]
[1752005925680,69.99633083,151.0,150.99,1e-08]
[1752005927485,64.1001104,151.0,150.99,1e-08]
[1752005928367,45.1661384,151.0,150.99,1e-08]
[1752005928693,51.06235883,151.0,150.99,1e-08]
[1752005930893,69.99633083,151.0,150.99,1e-08]
[1752005944079,69.71200769,151.0,150.99,1e-08]
[1752005944576,63.95794883,151.0,150.99,1e-08]
[1752005944785,69.85416926,151.0,150.99,1e-08]
[1752005944987,69.99633083,151.0,150.99,1e-08]
[1752005947407,69.99633083,151.0,150.99,0.03000001]
[1752005955812,69.95633083,151.0,150.99,0.03000001]
[1752005957619,36.39633083,151.0,150.99,0.03000001]
[1752005957914,69.95633083,151.0,150.99,0.03000001]
[1752005960114,69.96953509,151.0,150.99,0.03000001]
[1752005964821,64.07331466,151.0,150.99,0.03000001]
[1752005965024,69.96953509,151.0,150.99,0.03000001]
[1752005966218,64.07331466,151.0,150.99,0.03000001]
[1752005966518,95.96953509,151.0,150.99,0.03000001]
[1752005966714,95.82737352,151.0,150.99,0.03000001]
[1752005967091,95.96953509,151.0,150.99,0.03000001]
[1752005969022,93.85259663,151.0,150.99,0.03000001]
[1752005971621,90.07331466,151.0,150.99,0.03000001]
[1752005971923,60.29259663,151.0,150.99,0.03000001]
[1752005972125,93.85259663,151.0,150.99,0.03000001]
[1752005972920,95.97660311,151.0,150.99,0.03000001]
[1752005973101,90.07331466,151.0,150.99,0.03000001]
[1752005973426,95.97660311,151.0,150.99,0.03000001]
[1752005974000,95.98107623,151.0,150.99,0.03000001]
[1752005975403,69.98107623,151.0,150.99,0.03000001]
[1752005977229,69.98191834,151.0,150.99,0.03000001]
[1752005977923,30.51862989,151.0,150.99,0.03000001]
[1752005978221,70.00191834,151.0,150.99,0.03000001]
[1752005979522,65.099777,151.0,150.99,0.03000001]
[1752005979730,70.00096513,151.0,150.99,0.03000001]
[1752005979919,36.42096513,151.0,150.99,0.03000001]
[1752005980109,69.98096513,151.0,150.99,0.03000001]
[1752005980704,69.98034349,151.0,150.99,0.03000001]
[1752005982305,70.00034349,151.0,150.99,0.03000001]
[1752005983533,51.06637149,151.0,150.99,0.03000001]
[1752005983729,70.00034349,151.0,150.99,0.03000001]
[1752005984327,11.58308304,151.0,150.99,0.03000001]
[1752005984633,45.16308304,151.0,150.99,0.03000001]
[1752005984833,51.06637149,151.0,150.99,0.03000001]
[1752005985248,17.48637149,151.0,150.99,0.03000001]
[1752005985537,51.06603702,151.0,150.99,0.03000001]
[1752005985708,70.00000902,151.0,150.99,0.03000001]
[1752005989442,64.09791016,151.0,150.99,0.03000001]
[1752005989638,45.16393816,151.0,150.99,0.03000001]
[1752005990340,45.14393816,151.0,150.99,0.03000001]
[1752005991738,11.58393816,151.0,150.99,0.03000001]
[1752005992041,45.14393816,151.0,150.99,0.03000001]
[1752005992932,11.58393816,151.0,150.99,0.03000001]
[1752005993121,45.14393816,151.0,150.99,0.03000001]
[1752005994127,48.92114013,151.0,150.99,0.03000001]
[1752005994847,67.85511213,151.0,150.99,0.03000001]
[1752005995144,67.85356753,151.0,150.99,0.03000001]
[1752005995556,45.14239356,151.0,150.99,0.03000001]
[1752005996054,11.58239356,151.0,150.99,0.03000001]
[1752005996233,4.95987701,151.0,150.99,0.03000001]
[1752005996422,11.58239356,151.0,150.99,0.03000001]
[1752005997544,36.41833552,151.0,150.99,0.03000001]
[1752006001553,11.58239356,151.0,150.99,0.03000001]
[1752006001758,38.55987701,151.0,150.99,0.03000001]
[1752006002055,4.95987701,151.0,150.99,5.93196997]
[1752006004739,0.06,151.0,150.99,5.93196997]
[1752006007751,0.06,151.0,150.99,12.55492513]
[1752006008062,0.06,151.0,150.99,19.18482513]
[1752006009461,0.06,151.0,150.99,64.11879713]
[1752006009661,0.06,151.04,151.03,5.90196996]
[1752006010254,0.06,151.04,151.03,13.05703992]
[1752006010959,0.06,151.04,151.03,7.15506996]
[1752006011151,0.06,151.04,151.03,31.99101192]
[1752006011349,0.06,151.04,151.03,38.95913202]
[1752006011556,0.06,151.04,151.03,45.5803331]
[1752006011862,0.06,151.09,151.04,18.933972]
[1752006012167,0.06,151.09,151.08,5.90196996]
[1752006020050,0.06,151.09,151.08,1.6177]
[1752006020248,0.06,151.09,151.08,7.51966996]
[1752006020678,0.06,151.09,151.08,14.13867975]
[1752006021080,0.06,151.09,151.08,33.07265175]
[1752006021583,0.06,151.09,151.08,66.75265175]
[1752006023683,0.06,151.09,151.08,41.91670979]
[1752006023890,0.06,151.09,151.08,47.81867975]
[1752006025199,0.06,151.09,151.08,41.19966996]
[1752006025502,0.06,151.09,151.04,15.90196996]
[1752006025503,0.06,151.09,151.04,1.6177]
[1752006025803,0.06,151.09,151.07,5.90196996]
[1752006026164,0.06,151.09,151.06,5.90196996]
[1752006026397,5.46196996,151.09,151.05,5.90196996]
[1752006026577,5.90196996,151.09,151.04,5.90196996]
[1752006027167,5.90196996,151.08,151.04,5.90196996]
[1752006027671,5.90196996,151.09,151.05,5.90196996]
[1752006028688,12.5208655,151.09,151.05,5.90196996]
[1752006029605,12.5208655,151.09,151.04,6.62068222]
[1752006029788,12.5208655,151.09,151.05,5.90196996]
[1752006030369,5.90196996,151.08,151.02,33.7]
[1752006030574,5.90196996,151.08,151.04,5.90196996]
[1752006030773,5.90196996,151.08,151.02,6.62144533]
[1752006030974,5.90196996,151.06,151.02,5.90196996]
[1752006032013,12.52219515,151.06,151.01,5.90196996]
[1752006032215,5.90196996,151.05,150.99,6.65281266]
[1752006032506,5.90196996,151.04,151.0,5.90196996]
[1752006033693,8.16222519,151.06,151.01,5.90196996]
[1752006033694,5.90196996,151.05,151.01,5.90196996]
[1752006035108,12.52242518,151.05,151.01,5.90196996]
[1752006036494,6.62045522,151.05,151.02,5.90196996]
[1752006037385,6.62045522,151.05,151.0,0.03]
[1752006037386,26.0,151.08,151.04,5.90196996]
[1752006037586,26.0,151.08,151.05,5.90196996]
[1752006038103,26.0,151.08,151.06,5.90196996]
[1752006038104,32.61913302,151.08,151.06,5.90196996]
[1752006038810,32.61913302,151.08,151.05,5.90196996]
[1752006044906,154.17875801,151.09,151.06,5.90196996]
[1752006045095,180.17875801,151.09,151.06,5.90196996]
[1752006047500,32.67875801,151.09,151.06,5.90196996]
[1752006053012,5.90196996,151.07,151.02,5.90196996]
[1752006053214,32.67875801,151.09,151.01,5.90196996]
[1752006053215,5.90196996,151.06,151.01,5.90196996]
[1752006053511,12.52198634,151.06,151.02,5.90196996]
[1752006056416,6.62001638,151.06,151.02,12.52356496]
[1752006056618,12.52198634,151.06,151.02,12.52356496]
[1752006056923,12.52198634,151.06,151.03,5.90196996]
[1752006057719,12.52198634,151.06,151.02,0.03]
[1752006057903,5.90196996,151.06,151.02,5.93196996]
[1752006058522,12.52190581,151.06,151.02,5.93196996]
[1752006059804,6.61900979,151.08,151.02,5.93196996]
[1752006060112,5.90196996,151.06,151.02,5.93196996]
[1752006060915,12.52198054,151.06,151.02,5.93196996]
[1752006061116,6.62001058,151.06,151.02,5.93196996]
[1752006061317,13.9576753,151.08,151.03,5.90196996]
[1752006061516,5.90196996,151.07,151.03,5.90196996]
[1752006062726,5.90196996,151.07,151.02,0.03]
[1752006062929,6.61988613,151.06,151.03,5.90196996]
[1752006066417,12.52148275,151.07,151.03,5.90196996]
[1752006068813,6.61900979,151.08,151.03,5.90196996]
[1752006069025,5.90196996,151.07,151.03,5.90196996]
[1752006070636,13.26476919,151.07,151.03,5.90196996]
[1752006070814,13.26476919,151.07,151.02,0.03]
[1752006070815,19.88463156,151.07,151.02,5.93196996]
[1752006071009,12.52183233,151.07,151.02,5.93196996]
[1752006072134,13.26567626,151.06,151.02,5.93196996]
[1752006072340,7.3637063,151.06,151.02,5.93196996]
[1752006073126,6.61998127,151.06,151.02,5.93196996]
[1752006073320,12.52195123,151.06,151.02,5.93196996]
[1752006074632,5.90196996,151.04,151.02,0.03]
[1752006075340,14.10014305,151.05,151.02,0.03]
[1752006075852,1.5778,151.05,151.02,0.03]
[1752006077148,8.19813431,151.05,151.02,0.03]
[1752006083227,14.10010427,151.05,151.02,0.03]
[1752006085255,11.53061203,151.04,151.02,0.03]
[1752006085433,4.90977792,151.03,151.02,0.03]
[1752006087956,24.79591757,151.03,151.02,0.03]
[1752006089154,24.79591757,151.03,151.02,0.03]
[1752006090044,11.530979,151.03,151.02,0.03]
[1752006091556,4.90977792,151.03,151.02,0.03]
[1752006093960,6.61970993,151.07,151.02,5.93196996]
[1752006094151,4.904127,151.06,151.03,5.90196996]
[1752006094352,4.9027515,151.05,151.03,5.90196996]
[1752006094666,6.61970993,151.07,151.03,5.90196996]
[1752006094850,4.90344342,151.06,151.03,5.90196996]
[1752006095157,4.90344342,151.05,151.03,5.90196996]
[1752006095465,12.52167989,151.07,151.03,5.90196996]
[1752006095666,4.9041742,151.06,151.03,5.90196996]
[1752006095858,4.9041742,151.05,151.03,5.90196996]
[1752006096050,12.52167989,151.07,151.03,5.90196996]
[1752006096357,4.90390523,151.06,151.03,5.90196996]
[1752006096564,4.90390523,151.05,151.03,5.90196996]
[1752006096746,1.5916,151.09,151.04,5.90196996]
[1752006097063,4.90477242,151.08,151.05,5.90196996]
[1752006097362,4.90477242,151.07,151.05,5.90196996]
[1752006097559,4.90477242,151.06,151.05,5.90196996]
[1752006099745,4.90435529,151.06,151.05,5.90196996]
[1752006101171,12.58068576,151.09,151.05,5.90196996]
[1752006101355,4.90339225,151.08,151.05,5.90196996]
[1752006101552,4.90339225,151.07,151.05,5.90196996]
[1752006101873,0.06,151.09,151.05,12.5222434]
[1752006102057,4.90330035,151.08,151.06,5.90196996]
[1752006102249,4.90330035,151.07,151.06,5.90196996]
[1752006102451,4.90330035,151.07,151.05,5.90196996]
[1752006102658,5.96196996,151.09,151.05,5.90196996]
[1752006102858,4.90290947,151.08,151.05,5.90196996]
[1752006103056,4.90290947,151.07,151.05,5.90196996]
[1752006103367,12.58081069,151.09,151.05,5.90196996]
[1752006103667,4.90247048,151.08,151.05,5.90196996]
[1752006103855,4.90247048,151.07,151.05,5.90196996]
[1752006104049,5.96196996,151.09,151.05,5.90196996]
[1752006104249,4.90247048,151.08,151.05,5.90196996]
[1752006104562,4.90247048,151.07,151.05,5.90196996]
[1752006104776,5.96196996,151.09,151.05,5.90196996]
[1752006104945,4.90246607,151.08,151.05,5.90196996]
[1752006105244,4.90246607,151.07,151.05,5.90196996]
[1752006105569,0.06,151.09,151.05,5.90196996]
[1752006105774,4.90266338,151.08,151.05,5.90196996]
[1752006105961,4.90266338,151.07,151.05,5.90196996]
[1752006106270,5.96196996,151.09,151.05,5.90196996]
[1752006106466,4.90231334,151.08,151.05,5.90196996]
[1752006106662,4.90231334,151.07,151.03,8.22001662]
[1752006106862,6.61907566,151.08,151.06,5.90196996]
[1752006107165,4.90231812,151.07,151.06,5.90196996]
[1752006107363,4.90231812,151.07,151.05,5.90196996]
[1752006107563,12.52104562,151.08,151.04,5.90196996]
[1752006107747,4.90203892,151.07,151.04,5.90196996]
[1752006107952,6.61907566,151.08,151.05,5.90196996]
[1752006108146,4.90217996,151.07,151.05,5.90196996]
[1752006108344,6.61907566,151.08,151.05,5.90196996]
[1752006108564,4.90182243,151.07,151.05,5.90196996]
[1752006108762,6.61907566,151.08,151.05,5.90196996]
[1752006108965,4.90182414,151.07,151.05,5.90196996]
[1752006109150,6.61907566,151.08,151.05,5.90196996]
[1752006110366,6.61907566,151.08,151.02,6.65163951]
[1752006110670,6.61907566,151.08,151.05,5.90196996]
[1752006112577,6.61907566,151.08,151.03,6.62114694]
[1752006112755,6.61907566,151.08,151.05,5.90196996]
[1752006120572,0.06,151.09,151.07,5.90196996]
[1752006128999,0.06,151.09,151.07,3.77181346]
[1752006132591,0.06,151.09,151.08,3.77181346]
[1752006133376,0.06,151.09,151.08,37.31181346]
[1752006135081,0.06,151.09,151.08,43.93082325]
[1752006135288,0.06,151.09,151.08,40.15900979]
[1752006135499,0.06,151.09,151.08,43.93082325]
[1752006137895,0.06,151.09,151.08,62.86479525]
[1752006144176,0.06,151.12,151.09,84.683972]
[1752006144381,0.06,151.12,151.11,3.77181346]
[1752006144682,0.06,151.12,151.11,37.31181346]
[1752006145577,0.06,151.12,151.11,43.92950917]
[1752006147302,0.06,151.12,151.11,10.38950917]
[1752006147504,0.06,151.12,151.11,43.92950917]
[1752006148000,0.06,151.12,151.11,62.86348117]
[1752006148204,0.06,151.12,151.11,77.95073501]
[1752006148504,1e-08,151.12,151.11,89.52525074]
[1752006148699,1e-08,151.12,151.11,104.61250458]
[1752006149793,1e-08,151.12,151.11,107.94958625]
[1752006154214,1e-08,151.12,151.11,196.24958625]
[1752006154408,1e-08,151.12,151.11,195.58781668]
[1752006156003,1e-08,151.12,151.11,169.58781668]
[1752006156311,1e-08,151.12,151.11,179.58781668]
[1752006156697,1e-08,151.12,151.11,219.37781668]
[1752006157186,1e-08,151.12,151.11,227.60241668]
[1752006158307,0.06,151.18,151.14,44.64964886]
[1752006158496,0.06,151.18,151.17,22.70578546]
[1752006158691,0.06,151.18,151.17,56.24578546]
[1752006159115,0.06,151.18,151.17,52.473972]
[1752006159416,0.06,151.18,151.17,56.24578546]
[1752006160693,0.06,151.18,151.17,62.86085458]
[1752006163013,0.06,151.18,151.17,151.16085458]
[1752006167100,0.06,151.18,151.17,147.36904112]
[1752006167315,0.06,151.18,151.17,151.14085458]
[1752006178120,0.06,151.18,151.17,113.84904112]
[1752006178337,0.06,151.18,151.17,151.12085458]
[1752006180721,0.06,151.18,151.17,62.82085458]
[1752006181827,0.06,151.18,151.17,29.32085458]
[1752006182032,0.06,151.18,151.17,62.82085458]
[1752006184222,0.06,151.18,151.17,59.04904112]
[1752006184410,0.06,151.18,151.17,62.82085458]
[1752006185129,0.06,151.18,151.17,63.48236149]
[1752006186738,0.06,151.18,151.17,151.78236149]
[1752006186939,0.06,151.18,151.17,151.12085458]
[1752006188437,0.2,151.2,151.17,62.82085458]
[1752006188637,0.2,151.2,151.19,44.8590673]
[1752006188826,0.2,151.2,151.19,151.57181346]
[1752006190134,1e-08,151.2,151.19,185.5930393]
[1752006190329,1e-08,151.2,151.19,192.20723336]
[1752006191330,1e-08,151.2,151.19,202.20723336]
[1752006192919,1e-08,151.2,151.19,195.10281034]
[1752006195443,2.7,151.24,151.23,44.64964886]
[1752006195648,2.7,151.24,151.23,173.27253859]
[1752006195847,2.7,151.24,151.23,172.61129413]
[1752006196148,2.7,151.24,151.23,114.29999999]
[1752006196349,2.7,151.24,151.23,153.67732213]
[1752006197343,2.7,151.24,151.23,120.17732213]
[1752006197532,2.7,151.24,151.23,160.28976675]
[1752006197932,2.7,151.24,151.23,126.78976675]
[1752006198148,2.7,151.24,151.23,160.28976675]
[1752006198849,2.7,151.24,151.23,94.91244461]
[1752006199026,2.7,151.24,151.23,127.67732213]
[1752006199426,2.7,151.24,151.23,121.79999999]
[1752006200738,2.7,151.24,151.23,88.29999999]
[1752006201048,16.81362214,151.24,151.23,121.79999999]
[1752006201456,16.81362214,151.24,151.23,33.5]
[1752006204564,14.31362214,151.24,151.2,6.61351984]
[1752006204747,20.9256555,151.24,151.2,6.61351984]